[Event "Late-Titled-Tuesday-Blitz-April-30-2024"]
[Site "Chess.com"]
[Date "2024.04.30"]
[Round "5"]
[White "HajiyevKanan"]
[Black "Legendinunknown"]
[Result "1/2-1/2"]
[WhiteElo "2631"]
[BlackElo "2804"]
[TimeControl "180+1"]
[EndTime "14:58:30 PDT"]
[Termination "Game drawn - insufficient material"]

1. d4 {[%clk 0:03:00.9]} 1... Nf6 {[%clk 0:02:54.4]} 2. Nf3 {[%clk 0:03:01.5]}
2... e6 {[%clk 0:02:51.8]} 3. c4 {[%clk 0:03:01.1]} 3... Bb4+ {[%clk 0:02:50.8]}
4. Bd2 {[%clk 0:03:01.2]} 4... c5 {[%clk 0:02:49.5]} 5. a3 {[%clk 0:02:58.4]}
5... Bxd2+ {[%clk 0:02:49.4]} 6. Qxd2 {[%clk 0:02:59.1]} 6... cxd4 {[%clk
0:02:49.9]} 7. Nxd4 {[%clk 0:02:57.5]} 7... O-O {[%clk 0:02:45.8]} 8. e3 {[%clk
0:02:58.1]} 8... Nc6 {[%clk 0:02:39]} 9. Nc3 {[%clk 0:02:50.3]} 9... b6 {[%clk
0:02:32]} 10. Nxc6 {[%clk 0:02:50.4]} 10... dxc6 {[%clk 0:02:32]} 11. Rd1 {[%clk
0:02:39.8]} 11... Bb7 {[%clk 0:02:22.3]} 12. Be2 {[%clk 0:02:30.3]} 12... Qxd2+
{[%clk 0:02:18.6]} 13. Rxd2 {[%clk 0:02:31.2]} 13... Rfd8 {[%clk 0:02:18.4]} 14.
Bf3 {[%clk 0:02:29.8]} 14... Kf8 {[%clk 0:02:15.3]} 15. Rxd8+ {[%clk 0:02:21]}
15... Rxd8 {[%clk 0:02:16.2]} 16. Ke2 {[%clk 0:02:20.3]} 16... Ke7 {[%clk
0:02:14.5]} 17. Rd1 {[%clk 0:02:19.8]} 17... Rxd1 {[%clk 0:02:13.8]} 18. Kxd1
{[%clk 0:02:20.4]} 18... Nd7 {[%clk 0:02:13.9]} 19. b4 {[%clk 0:02:20.4]} 19...
Ne5 {[%clk 0:02:13.8]} 20. Be2 {[%clk 0:02:04.5]} 20... c5 {[%clk 0:02:14]} 21.
f4 {[%clk 0:01:49.6]} 21... Nd7 {[%clk 0:02:12.3]} 22. g4 {[%clk 0:01:41.8]}
22... cxb4 {[%clk 0:02:10.7]} 23. axb4 {[%clk 0:01:42.7]} 23... a5 {[%clk
0:02:10.7]} 24. bxa5 {[%clk 0:01:36.9]} 24... bxa5 {[%clk 0:02:11.6]} 25. Kc2
{[%clk 0:01:34.7]} 25... Nc5 {[%clk 0:02:10.1]} 26. Nb5 {[%clk 0:01:31.2]} 26...
Kd7 {[%clk 0:01:49.4]} 27. h4 {[%clk 0:01:26.4]} 27... Be4+ {[%clk 0:01:44]} 28.
Kc3 {[%clk 0:01:25.5]} 28... Kc6 {[%clk 0:01:44.5]} 29. g5 {[%clk 0:01:19.9]}
29... h6 {[%clk 0:01:39.7]} 30. h5 {[%clk 0:01:14.2]} 30... Bg2 {[%clk
0:01:28.6]} 31. Kd4 {[%clk 0:01:00.7]} 31... Nb3+ {[%clk 0:01:20.2]} 32. Ke5
{[%clk 0:00:55.7]} 32... Nc1 {[%clk 0:01:12.7]} 33. Bg4 {[%clk 0:00:44.6]} 33...
Nd3+ {[%clk 0:01:10.5]} 34. Kd4 {[%clk 0:00:44.9]} 34... Nf2 {[%clk 0:01:08.3]}
35. Be2 {[%clk 0:00:34.7]} 35... a4 {[%clk 0:00:57.5]} 36. Ke5 {[%clk
0:00:20.5]} 36... Ne4 {[%clk 0:00:45.3]} 37. g6 {[%clk 0:00:15.7]} 37... fxg6
{[%clk 0:00:39.2]} 38. hxg6 {[%clk 0:00:16.6]} 38... Nc5 {[%clk 0:00:39.2]} 39.
Bg4 {[%clk 0:00:09.2]} 39... Bf1 {[%clk 0:00:23]} 40. Kd4 {[%clk 0:00:07]} 40...
Bg2 {[%clk 0:00:17]} 41. Kc3 {[%clk 0:00:07.1]} 41... Be4 {[%clk 0:00:15.4]} 42.
Bh5 {[%clk 0:00:07.6]} 42... Bf5 {[%clk 0:00:15.2]} 43. Kb4 {[%clk 0:00:08.1]}
43... Kb6 {[%clk 0:00:14.6]} 44. Nd4 {[%clk 0:00:08.1]} 44... Bd3 {[%clk
0:00:14.1]} 45. Bg4 {[%clk 0:00:04.9]} 45... Bxg6 {[%clk 0:00:14.2]} 46. Nxe6
{[%clk 0:00:05.4]} 46... Nxe6 {[%clk 0:00:12.5]} 47. Bxe6 {[%clk 0:00:06.3]}
47... Be8 {[%clk 0:00:13.1]} 48. c5+ {[%clk 0:00:06.8]} 48... Kc6 {[%clk
0:00:13.2]} 49. Kxa4 {[%clk 0:00:05.4]} 49... Kxc5+ {[%clk 0:00:13.3]} 50. Kb3
{[%clk 0:00:05.5]} 50... Kd6 {[%clk 0:00:13.9]} 51. Bg4 {[%clk 0:00:05]} 51...
h5 {[%clk 0:00:13.1]} 52. Bf3 {[%clk 0:00:05.5]} 52... h4 {[%clk 0:00:13]} 53.
Kc3 {[%clk 0:00:04.6]} 53... h3 {[%clk 0:00:12.4]} 54. e4 {[%clk 0:00:05.2]}
54... h2 {[%clk 0:00:10]} 55. e5+ {[%clk 0:00:04.5]} 55... Ke6 {[%clk 0:00:10]}
56. Kd4 {[%clk 0:00:05.1]} 56... Kf5 {[%clk 0:00:09.7]} 57. Ke3 {[%clk
0:00:05.1]} 57... Bh5 {[%clk 0:00:10.1]} 58. Be4+ {[%clk 0:00:04.5]} 58... Kg4
{[%clk 0:00:10.4]} 59. e6 {[%clk 0:00:04.8]} 59... Kg3 {[%clk 0:00:10.3]} 60. e7
{[%clk 0:00:04.8]} 60... Be8 {[%clk 0:00:10.6]} 61. Bh1 {[%clk 0:00:04.2]} 61...
Kg4 {[%clk 0:00:10.9]} 62. Bd5 {[%clk 0:00:02.3]} 62... Kf5 {[%clk 0:00:10.5]}
63. Bh1 {[%clk 0:00:02.8]} 63... Kf6 {[%clk 0:00:10.8]} 64. Kf2 {[%clk
0:00:03.5]} 64... Kxe7 {[%clk 0:00:11.1]} 65. Kg3 {[%clk 0:00:04.2]} 65... Kf6
{[%clk 0:00:12]} 66. Kxh2 {[%clk 0:00:04.7]} 66... Kf5 {[%clk 0:00:12.9]} 67.
Kg3 {[%clk 0:00:05.4]} 67... Bg6 {[%clk 0:00:12.7]} 68. Bg2 {[%clk 0:00:05.8]}
68... Kf6 {[%clk 0:00:13.4]} 69. Bf3 {[%clk 0:00:06.1]} 69... Bf5 {[%clk
0:00:14.3]} 70. Bg4 {[%clk 0:00:06.7]} 70... Be4 {[%clk 0:00:14.4]} 71. Bf3
{[%clk 0:00:07]} 71... Kf5 {[%clk 0:00:15.1]} 72. Bxe4+ {[%clk 0:00:07.3]} 72...
Kxe4 {[%clk 0:00:16]} 73. Kg4 {[%clk 0:00:08.1]} 73... Ke3 {[%clk 0:00:16.7]}
74. f5 {[%clk 0:00:08.6]} 74... Ke4 {[%clk 0:00:17.4]} 75. Kg5 {[%clk
0:00:09.3]} 75... Ke5 {[%clk 0:00:18.1]} 76. Kg6 {[%clk 0:00:10]} 76... Kf4
{[%clk 0:00:18.8]} 77. f6 {[%clk 0:00:09.6]} 77... gxf6 {[%clk 0:00:19.7]} 78.
Kxf6 {[%clk 0:00:10.2]} 1/2-1/2

[Event "Late-Titled-Tuesday-Blitz-April-30-2024"]
[Site "Chess.com"]
[Date "2024.04.30"]
[Round "5"]
[White "Njal28"]
[Black "KuzubovYuriy"]
[Result "0-1"]
[WhiteElo "3086"]
[BlackElo "2980"]
[TimeControl "180+1"]
[EndTime "14:59:08 PDT"]
[Termination "KuzubovYuriy won by resignation"]

1. e4 {[%clk 0:03:00.9]} 1... e5 {[%clk 0:02:56.3]} 2. Nf3 {[%clk 0:03:01]} 2...
Nf6 {[%clk 0:02:56.8]} 3. Nc3 {[%clk 0:03:01.4]} 3... Nc6 {[%clk 0:02:56.7]} 4.
Bb5 {[%clk 0:03:01.9]} 4... Nd4 {[%clk 0:02:52.3]} 5. Nxd4 {[%clk 0:03:02.2]}
5... exd4 {[%clk 0:02:52.2]} 6. e5 {[%clk 0:03:03.1]} 6... dxc3 {[%clk
0:02:52.1]} 7. exf6 {[%clk 0:03:03.6]} 7... Qxf6 {[%clk 0:02:52.4]} 8. dxc3
{[%clk 0:03:04.3]} 8... Qe5+ {[%clk 0:02:52.9]} 9. Be2 {[%clk 0:03:04.2]} 9...
Bc5 {[%clk 0:02:49.9]} 10. O-O {[%clk 0:03:03.8]} 10... O-O {[%clk 0:02:49.9]}
11. Bd3 {[%clk 0:03:02.5]} 11... d6 {[%clk 0:02:46.5]} 12. Qf3 {[%clk
0:02:41.9]} 12... Rb8 {[%clk 0:02:04.1]} 13. Bd2 {[%clk 0:02:32.9]} 13... Be6
{[%clk 0:01:51.4]} 14. Rfe1 {[%clk 0:02:26.7]} 14... Qd5 {[%clk 0:01:46.8]} 15.
Qg3 {[%clk 0:01:43.3]} 15... Qh5 {[%clk 0:01:30.6]} 16. Re4 {[%clk 0:01:26]}
16... g6 {[%clk 0:01:25.5]} 17. Rh4 {[%clk 0:01:17.5]} 17... Qe5 {[%clk
0:01:21.2]} 18. Bf4 {[%clk 0:01:11.8]} 18... Qf6 {[%clk 0:01:18.6]} 19. Bg5
{[%clk 0:00:51.1]} 19... Bxf2+ {[%clk 0:01:15.1]} 20. Qxf2 {[%clk 0:00:48.7]}
20... Qxg5 {[%clk 0:01:15.4]} 21. Re1 {[%clk 0:00:41.2]} 21... b6 {[%clk
0:01:11]} 22. Ra4 {[%clk 0:00:39.3]} 22... a5 {[%clk 0:01:09.9]} 23. h4 {[%clk
0:00:39.9]} 23... Qh6 {[%clk 0:01:04.3]} 24. Rae4 {[%clk 0:00:25.9]} 24... Qg7
{[%clk 0:00:53.6]} 25. a3 {[%clk 0:00:25.8]} 25... d5 {[%clk 0:00:34.5]} 26. Re5
{[%clk 0:00:24.8]} 26... Rbe8 {[%clk 0:00:17.6]} 27. Bb5 {[%clk 0:00:24.3]}
27... Rd8 {[%clk 0:00:16.3]} 28. h5 {[%clk 0:00:24.6]} 28... gxh5 {[%clk
0:00:12.8]} 29. Rxh5 {[%clk 0:00:22.9]} 29... Bg4 {[%clk 0:00:12.2]} 30. Rhe5
{[%clk 0:00:17.2]} 30... Rd6 {[%clk 0:00:11.8]} 31. Bd3 {[%clk 0:00:16.4]} 31...
h5 {[%clk 0:00:11.4]} 32. Qd2 {[%clk 0:00:16.3]} 32... Kh8 {[%clk 0:00:10]} 33.
Rg5 {[%clk 0:00:15.8]} 33... Qh6 {[%clk 0:00:09.6]} 34. Qf4 {[%clk 0:00:14.9]}
34... Rg8 {[%clk 0:00:07.4]} 35. Rxg8+ {[%clk 0:00:09.8]} 35... Kxg8 {[%clk
0:00:07.8]} 36. Re8+ {[%clk 0:00:10.2]} 36... Kg7 {[%clk 0:00:08.2]} 37. Qe5+
{[%clk 0:00:09.8]} 37... Qf6 {[%clk 0:00:07.7]} 38. Qe3 {[%clk 0:00:08.8]} 38...
d4 {[%clk 0:00:07.5]} 39. Qd2 {[%clk 0:00:04.8]} 39... dxc3 {[%clk 0:00:07.2]}
40. bxc3 {[%clk 0:00:05.7]} 40... Re6 {[%clk 0:00:06.5]} 41. Rb8 {[%clk
0:00:04.8]} 41... Qe5 {[%clk 0:00:06.6]} 42. Kf2 {[%clk 0:00:01.9]} 42... Rf6+
{[%clk 0:00:06.4]} 43. Kg1 {[%clk 0:00:01.9]} 43... h4 {[%clk 0:00:06.4]} 44.
Rd8 {[%clk 0:00:00.8]} 44... h3 {[%clk 0:00:06.3]} 45. Rd4 {[%clk 0:00:01.7]}
45... h2+ {[%clk 0:00:05.6]} 46. Kh1 {[%clk 0:00:02.3]} 46... Be6 {[%clk
0:00:05.4]} 47. Rh4 {[%clk 0:00:02.4]} 47... Kf8 {[%clk 0:00:03.8]} 48. Rxh2
{[%clk 0:00:02.4]} 48... Qf4 {[%clk 0:00:03.4]} 49. Qxf4 {[%clk 0:00:02.5]}
49... Rxf4 {[%clk 0:00:03.6]} 50. Rh8+ {[%clk 0:00:03.4]} 50... Ke7 {[%clk
0:00:04.1]} 51. Rb8 {[%clk 0:00:01.7]} 51... Ra4 {[%clk 0:00:03.8]} 52. Kg1
{[%clk 0:00:01.9]} 52... Rxa3 {[%clk 0:00:03.8]} 53. Kf2 {[%clk 0:00:02.8]}
53... Rxc3 {[%clk 0:00:03.8]} 54. Rb7 {[%clk 0:00:03.7]} 54... Kd6 {[%clk
0:00:03.6]} 55. Ra7 {[%clk 0:00:04.6]} 55... Bc4 {[%clk 0:00:02.5]} 56. Bh7
{[%clk 0:00:04.6]} 56... Bd5 {[%clk 0:00:02.4]} 57. g4 {[%clk 0:00:04.3]} 57...
Be6 {[%clk 0:00:02.2]} 58. g5 {[%clk 0:00:04.8]} 58... Rh3 {[%clk 0:00:02.3]}
59. Bd3 {[%clk 0:00:03.9]} 59... Rh5 {[%clk 0:00:02.4]} 60. g6 {[%clk
0:00:03.9]} 60... fxg6 {[%clk 0:00:02.5]} 61. Ra8 {[%clk 0:00:04.8]} 61... Rc5
{[%clk 0:00:02.5]} 62. Rd8+ {[%clk 0:00:05.3]} 62... Ke7 {[%clk 0:00:02.9]} 63.
Rb8 {[%clk 0:00:05.9]} 63... Bf5 {[%clk 0:00:03.3]} 64. Ra8 {[%clk 0:00:06.8]}
64... Bxd3 {[%clk 0:00:03.5]} 65. cxd3 {[%clk 0:00:07.6]} 65... Kd6 {[%clk
0:00:04.2]} 66. Ke3 {[%clk 0:00:08.5]} 66... Kc6 {[%clk 0:00:04]} 67. d4 {[%clk
0:00:09.4]} 67... Rd5 {[%clk 0:00:04.4]} 68. Rg8 {[%clk 0:00:10.2]} 68... Rd6
{[%clk 0:00:04.8]} 69. Ke4 {[%clk 0:00:10.9]} 69... Kb7 {[%clk 0:00:05.4]} 70.
d5 {[%clk 0:00:11.1]} 70... b5 {[%clk 0:00:05.9]} 71. Kd4 {[%clk 0:00:11.5]}
71... c6 {[%clk 0:00:06.1]} 72. Kc3 {[%clk 0:00:07.3]} 72... Rxd5 {[%clk
0:00:06.3]} 73. Rxg6 {[%clk 0:00:07.5]} 73... Kb6 {[%clk 0:00:06.9]} 74. Rg8
{[%clk 0:00:08.4]} 74... Rc5+ {[%clk 0:00:07]} 75. Kd4 {[%clk 0:00:08.5]} 75...
Rh5 {[%clk 0:00:07.7]} 76. Rb8+ {[%clk 0:00:08.1]} 76... Kc7 {[%clk 0:00:07.8]}
77. Rg8 {[%clk 0:00:08.7]} 77... Rh4+ {[%clk 0:00:08.3]} 78. Kc3 {[%clk
0:00:08.2]} 78... Kb6 {[%clk 0:00:08.6]} 79. Rb8+ {[%clk 0:00:08.5]} 79... Kc5
{[%clk 0:00:09.1]} 80. Ra8 {[%clk 0:00:09.3]} 80... Rh3+ {[%clk 0:00:09.6]} 81.
Kb2 {[%clk 0:00:09.8]} 81... a4 {[%clk 0:00:10.5]} 82. Rg8 {[%clk 0:00:09.9]}
82... Kb4 {[%clk 0:00:10.5]} 83. Rg4+ {[%clk 0:00:10.8]} 83... Ka5 {[%clk
0:00:10.9]} 84. Rg6 {[%clk 0:00:11.2]} 84... c5 {[%clk 0:00:11.4]} 85. Rg8
{[%clk 0:00:11.1]} 85... c4 {[%clk 0:00:11.5]} 86. Ka2 {[%clk 0:00:11.5]} 86...
Kb4 {[%clk 0:00:11.9]} 87. Rg2 {[%clk 0:00:12.2]} 87... a3 {[%clk 0:00:12.2]}
88. Rc2 {[%clk 0:00:11.8]} 88... Rb3 {[%clk 0:00:11.4]} 89. Rc1 {[%clk
0:00:12.3]} 89... Rd3 {[%clk 0:00:11.7]} 90. Ka1 {[%clk 0:00:13.2]} 90... Ka4
{[%clk 0:00:11.8]} 91. Ka2 {[%clk 0:00:12.6]} 91... Rd4 {[%clk 0:00:11.4]} 92.
Ka1 {[%clk 0:00:11.4]} 92... b4 {[%clk 0:00:11.9]} 93. Rg1 {[%clk 0:00:10.1]}
93... b3 {[%clk 0:00:12.2]} 94. Kb1 {[%clk 0:00:10.2]} 94... Kb4 {[%clk
0:00:12.2]} 95. Kc1 {[%clk 0:00:09.9]} 95... Rh4 {[%clk 0:00:11.7]} 96. Rg8
{[%clk 0:00:09.8]} 96... Rh3 {[%clk 0:00:12.1]} 97. Kd2 {[%clk 0:00:09]} 97...
Rh2+ {[%clk 0:00:12.2]} 98. Ke3 {[%clk 0:00:09.3]} 98... a2 {[%clk 0:00:12.6]}
99. Ra8 {[%clk 0:00:09.7]} 99... Rh1 {[%clk 0:00:11.6]} 100. Rxa2 {[%clk
0:00:10.6]} 100... bxa2 {[%clk 0:00:11.9]} 101. Kf3 {[%clk 0:00:10.5]} 101...
a1=Q {[%clk 0:00:12]} 102. Kg3 {[%clk 0:00:11.4]} 0-1

[Event "Late-Titled-Tuesday-Blitz-April-30-2024"]
[Site "Chess.com"]
[Date "2024.04.30"]
[Round "6"]
[White "Dhaydon19"]
[Black "NovakRatko"]
[Result "1-0"]
[WhiteElo "2621"]
[BlackElo "2397"]
[TimeControl "180+1"]
[EndTime "15:02:50 PDT"]
[Termination "Dhaydon19 won by resignation"]

1. e4 {[%clk 0:03:00.9]} 1... d5 {[%clk 0:02:56.1]} 2. exd5 {[%clk 0:02:59.9]}
2... c6 {[%clk 0:02:56.7]} 3. Nc3 {[%clk 0:03:00.6]} 3... cxd5 {[%clk
0:02:56.7]} 4. d4 {[%clk 0:03:01.2]} 4... Nc6 {[%clk 0:02:57.3]} 5. Nf3 {[%clk
0:03:01.3]} 5... f6 {[%clk 0:02:56.3]} 6. Bb5 {[%clk 0:03:00.3]} 6... Bg4 {[%clk
0:02:56.5]} 7. h3 {[%clk 0:02:58.8]} 7... Bh5 {[%clk 0:02:56.9]} 8. Qe2 {[%clk
0:02:50.8]} 8... a6 {[%clk 0:02:53.9]} 9. Bxc6+ {[%clk 0:02:48.2]} 9... bxc6
{[%clk 0:02:53.8]} 10. Be3 {[%clk 0:02:46.8]} 10... Qd6 {[%clk 0:02:50.9]} 11.
O-O-O {[%clk 0:02:43.3]} 11... e6 {[%clk 0:02:50.8]} 12. g4 {[%clk 0:02:41.2]}
12... Bf7 {[%clk 0:02:50.1]} 13. Nd2 {[%clk 0:02:37.8]} 13... a5 {[%clk
0:02:48.9]} 14. a3 {[%clk 0:02:34.7]} 14... a4 {[%clk 0:02:48.2]} 15. Qf3 {[%clk
0:02:28.5]} 15... Rb8 {[%clk 0:02:45.7]} 16. Bf4 {[%clk 0:02:27.3]} 16... Qd8
{[%clk 0:02:42.1]} 17. Bxb8 {[%clk 0:02:25.9]} 17... Qxb8 {[%clk 0:02:43]} 18.
Nxa4 {[%clk 0:02:25]} 18... Qb5 {[%clk 0:02:39.6]} 19. Qb3 {[%clk 0:02:24.7]}
19... Qa5 {[%clk 0:02:12.4]} 20. Qb8+ {[%clk 0:02:21.9]} 20... Ke7 {[%clk
0:02:12.4]} 21. Nc5 {[%clk 0:02:18.2]} 21... Qd8 {[%clk 0:01:52.1]} 22. Qb7+
{[%clk 0:02:15.2]} 22... Ke8 {[%clk 0:01:51.9]} 23. Qxc6+ {[%clk 0:02:14.6]}
23... Ke7 {[%clk 0:01:51.2]} 24. Rhe1 {[%clk 0:02:15.2]} 24... Qd6 {[%clk
0:01:43.9]} 25. Qb7+ {[%clk 0:02:12.6]} 25... Kd8 {[%clk 0:01:43.4]} 26. Qxf7
{[%clk 0:02:10.8]} 1-0

[Event "Late-Titled-Tuesday-Blitz-April-30-2024"]
[Site "Chess.com"]
[Date "2024.04.30"]
[Round "6"]
[White "MatthewG-p4p"]
[Black "reevecanada"]
[Result "1-0"]
[WhiteElo "2867"]
[BlackElo "2645"]
[TimeControl "180+1"]
[EndTime "15:02:57 PDT"]
[Termination "MatthewG-p4p won by checkmate"]

1. f4 {[%clk 0:02:54.6]} 1... e5 {[%clk 0:02:59.4]} 2. fxe5 {[%clk 0:02:55.5]}
2... d6 {[%clk 0:03:00.1]} 3. Nf3 {[%clk 0:02:56]} 3... dxe5 {[%clk 0:02:59.4]}
4. e4 {[%clk 0:02:56.6]} 4... Nf6 {[%clk 0:02:58.6]} 5. Bc4 {[%clk 0:02:57.2]}
5... Bc5 {[%clk 0:02:57.4]} 6. Qe2 {[%clk 0:02:57.4]} 6... Nc6 {[%clk
0:02:56.7]} 7. Bxf7+ {[%clk 0:02:57.5]} 7... Kxf7 {[%clk 0:02:47]} 8. Qc4+
{[%clk 0:02:57.1]} 8... Ke8 {[%clk 0:02:31]} 9. Qxc5 {[%clk 0:02:57.3]} 9...
Nxe4 {[%clk 0:02:31.1]} 10. Qe3 {[%clk 0:02:57.5]} 10... Qd5 {[%clk 0:02:26.3]}
11. d3 {[%clk 0:02:52]} 11... Nf6 {[%clk 0:02:25.3]} 12. Nc3 {[%clk 0:02:52.1]}
12... Qa5 {[%clk 0:02:23.7]} 13. O-O {[%clk 0:02:51]} 13... Bg4 {[%clk
0:02:21.7]} 14. Kh1 {[%clk 0:02:44.1]} 14... Bxf3 {[%clk 0:02:20.4]} 15. Qxf3
{[%clk 0:02:44]} 15... Rd8 {[%clk 0:02:16.5]} 16. Bg5 {[%clk 0:02:43.8]} 16...
Rd6 {[%clk 0:01:55.2]} 17. Ne4 {[%clk 0:02:40.9]} 17... Re6 {[%clk 0:01:49.2]}
18. Bxf6 {[%clk 0:02:28.7]} 18... gxf6 {[%clk 0:01:44.3]} 19. Nxf6+ {[%clk
0:02:28.9]} 19... Kd8 {[%clk 0:01:44.9]} 20. Qf5 {[%clk 0:02:27.4]} 20... Re7
{[%clk 0:01:42.1]} 21. Qg5 {[%clk 0:02:21.3]} 21... Qc5 {[%clk 0:01:34.6]} 22.
Ng8 {[%clk 0:02:18.1]} 22... Rxg8 {[%clk 0:01:32.3]} 23. Qxg8+ {[%clk
0:02:18.3]} 23... Kd7 {[%clk 0:01:32.9]} 24. Qg4+ {[%clk 0:02:14.3]} 24... Kd6
{[%clk 0:01:30.6]} 25. Rf6+ {[%clk 0:02:13.6]} 25... Kd5 {[%clk 0:01:30.7]} 26.
Qe4# {[%clk 0:02:11.3]} 1-0

[Event "Late-Titled-Tuesday-Blitz-April-30-2024"]
[Site "Chess.com"]
[Date "2024.04.30"]
[Round "6"]
[White "MeisterJabo"]
[Black "carloseduar100"]
[Result "1-0"]
[WhiteElo "2460"]
[BlackElo "2227"]
[TimeControl "180+1"]
[EndTime "15:03:33 PDT"]
[Termination "MeisterJabo won by resignation"]

1. c4 {[%clk 0:02:57.2]} 1... e6 {[%clk 0:02:50.1]} 2. g3 {[%clk 0:02:56.3]}
2... d5 {[%clk 0:02:50.2]} 3. Nf3 {[%clk 0:02:56.8]} 3... a6 {[%clk 0:02:49.8]}
4. Bg2 {[%clk 0:02:56.7]} 4... dxc4 {[%clk 0:02:50]} 5. O-O {[%clk 0:02:54.4]}
5... Nc6 {[%clk 0:02:49.9]} 6. a4 {[%clk 0:02:53.5]} 6... Bc5 {[%clk 0:02:42.2]}
7. Na3 {[%clk 0:02:50.4]} 7... Na5 {[%clk 0:02:42]} 8. Qc2 {[%clk 0:02:48.4]}
8... Nb3 {[%clk 0:02:37]} 9. Ra2 {[%clk 0:02:46.5]} 9... Nxc1 {[%clk 0:02:36.7]}
10. Rxc1 {[%clk 0:02:43.9]} 10... b5 {[%clk 0:02:27.8]} 11. Ne5 {[%clk
0:02:33.6]} 11... Rb8 {[%clk 0:01:58.4]} 12. Nc6 {[%clk 0:02:32.7]} 12... Qf6
{[%clk 0:01:58.6]} 13. Nxb8 {[%clk 0:02:27.6]} 13... Qxf2+ {[%clk 0:01:58.7]}
14. Kh1 {[%clk 0:02:27.1]} 14... Nf6 {[%clk 0:01:47.1]} 15. e3 {[%clk
0:02:19.8]} 15... O-O {[%clk 0:01:44.5]} 16. axb5 {[%clk 0:02:11.6]} 16... Ng4
{[%clk 0:01:43.9]} 17. Rf1 {[%clk 0:01:51]} 17... Qe2 {[%clk 0:01:40.5]} 18.
Raa1 {[%clk 0:01:45.7]} 18... Nxe3 {[%clk 0:01:25.3]} 19. dxe3 {[%clk
0:01:42.9]} 19... Qxe3 {[%clk 0:01:21.4]} 20. Nxc4 {[%clk 0:01:39.7]} 1-0

[Event "Late-Titled-Tuesday-Blitz-April-30-2024"]
[Site "Chess.com"]
[Date "2024.04.30"]
[Round "6"]
[White "sergiochess83"]
[Black "LyonBeast"]
[Result "0-1"]
[WhiteElo "2911"]
[BlackElo "3123"]
[TimeControl "180+1"]
[EndTime "15:03:44 PDT"]
[Termination "LyonBeast won by resignation"]

1. d4 {[%clk 0:02:50.2]} 1... Nf6 {[%clk 0:02:59.3]} 2. c4 {[%clk 0:02:45.9]}
2... e6 {[%clk 0:02:59.7]} 3. Nc3 {[%clk 0:02:41.8]} 3... d5 {[%clk 0:02:59.6]}
4. cxd5 {[%clk 0:02:41.9]} 4... exd5 {[%clk 0:02:59.8]} 5. Bg5 {[%clk
0:02:41.9]} 5... c6 {[%clk 0:03:00.2]} 6. e3 {[%clk 0:02:41.7]} 6... Be7 {[%clk
0:03:00.9]} 7. Bd3 {[%clk 0:02:41.1]} 7... h6 {[%clk 0:03:00.8]} 8. Bf4 {[%clk
0:02:38.1]} 8... Bg4 {[%clk 0:02:55.2]} 9. Nge2 {[%clk 0:02:32.8]} 9... Nh5
{[%clk 0:02:51.5]} 10. Be5 {[%clk 0:02:31.1]} 10... Nd7 {[%clk 0:02:51.5]} 11.
h3 {[%clk 0:02:30.8]} 11... Be6 {[%clk 0:02:50.7]} 12. Bh2 {[%clk 0:02:28.1]}
12... g6 {[%clk 0:02:45.9]} 13. g4 {[%clk 0:02:20.7]} 13... Ng7 {[%clk
0:02:45.9]} 14. Nf4 {[%clk 0:02:21.4]} 14... Nf6 {[%clk 0:02:32.4]} 15. Qc2
{[%clk 0:02:19.8]} 15... O-O {[%clk 0:02:16.7]} 16. O-O-O {[%clk 0:02:18.7]}
16... Rc8 {[%clk 0:02:14.6]} 17. Kb1 {[%clk 0:02:18.6]} 17... c5 {[%clk
0:02:14.6]} 18. Bxg6 {[%clk 0:01:17.2]} 18... fxg6 {[%clk 0:02:12.5]} 19. Nxe6
{[%clk 0:01:15.7]} 19... Nxe6 {[%clk 0:02:13.4]} 20. Qxg6+ {[%clk 0:01:15.8]}
20... Ng7 {[%clk 0:02:14.1]} 21. Qxh6 {[%clk 0:01:16.2]} 21... cxd4 {[%clk
0:02:05.5]} 22. Rxd4 {[%clk 0:01:15.8]} 22... Rxc3 {[%clk 0:02:04.6]} 23. bxc3
{[%clk 0:01:15.6]} 23... Ne4 {[%clk 0:02:04.6]} 24. Be5 {[%clk 0:01:08.8]} 24...
Bf6 {[%clk 0:02:03.6]} 25. Bxf6 {[%clk 0:00:54.6]} 25... Rxf6 {[%clk 0:02:04.5]}
0-1

[Event "Late-Titled-Tuesday-Blitz-April-30-2024"]
[Site "Chess.com"]
[Date "2024.04.30"]
[Round "6"]
[White "shirovin"]
[Black "nicolasbatista3"]
[Result "0-1"]
[WhiteElo "2082"]
[BlackElo "2434"]
[TimeControl "180+1"]
[EndTime "15:04:00 PDT"]
[Termination "nicolasbatista3 won on time"]

1. e4 {[%clk 0:03:00.9]} 1... c6 {[%clk 0:02:58.3]} 2. d4 {[%clk 0:03:00]} 2...
d5 {[%clk 0:02:58.7]} 3. exd5 {[%clk 0:03:00.5]} 3... cxd5 {[%clk 0:02:59.2]} 4.
Bd3 {[%clk 0:03:00.2]} 4... Nc6 {[%clk 0:02:59.1]} 5. c3 {[%clk 0:03:00.6]} 5...
Nf6 {[%clk 0:02:59.6]} 6. Bf4 {[%clk 0:02:59.4]} 6... g6 {[%clk 0:03:00.2]} 7.
Nf3 {[%clk 0:02:53.8]} 7... Bg7 {[%clk 0:03:00.2]} 8. Nbd2 {[%clk 0:02:52.3]}
8... O-O {[%clk 0:02:59.3]} 9. O-O {[%clk 0:02:51.9]} 9... Bf5 {[%clk
0:02:56.6]} 10. Bxf5 {[%clk 0:02:48.4]} 10... gxf5 {[%clk 0:02:57.5]} 11. Re1
{[%clk 0:02:46.6]} 11... e6 {[%clk 0:02:57]} 12. Ne5 {[%clk 0:02:33.5]} 12...
Ne4 {[%clk 0:02:55.8]} 13. f3 {[%clk 0:02:30.4]} 13... Nxe5 {[%clk 0:02:34.5]}
14. Nxe4 {[%clk 0:02:09.1]} 14... Nxf3+ {[%clk 0:02:29.1]} 15. gxf3 {[%clk
0:02:00.8]} 15... fxe4 {[%clk 0:02:27.8]} 16. fxe4 {[%clk 0:02:00.5]} 16... dxe4
{[%clk 0:02:27.8]} 17. Qg4 {[%clk 0:01:44.2]} 17... Kh8 {[%clk 0:02:27.5]} 18.
Be5 {[%clk 0:01:16]} 18... Bxe5 {[%clk 0:02:24.4]} 19. dxe5 {[%clk 0:01:14.4]}
19... Rg8 {[%clk 0:02:24.3]} 0-1